Cogmind - Beta 13 @@@ ROGUE MODE // 2024.06.08 @ 21:54:21 Player: GayPredator Result: Destroyed by B-75 Beast with Heavy Machine Gun Performance ------------- Evolutions (3) 1500 Regions Visited (5) 1000 Robots Destroyed (46) 230 Value Destroyed (881) 881 Prototype IDs (3) 60 Alien Tech Used (0) 0 Bonus (0) 0 TOTAL SCORE: 3671 Bonus ------- None Cogmind --------- Core Integrity 0/700 Matter 109/300 Energy 100/100 System Corruption 0% Temperature Cool (12) Movement Core (50) Location -7/Lower Caves Parts ------- > --- POWER (1) -------- (None) > --- PROPULSION (4) --- (None) > --- UTILITY (5) ------ (None) > --- WEAPON (3) ------- Spear > --- INVENTORY (5) ---- Medium Storage Unit Improved Signal Interpreter Improved Datajack Peak State ------------ > --- POWER ------------ Micro Nuclear Core > --- PROPULSION ------- VTOL Module Cesium-ion Thruster Surge Thruster Surge Thruster > --- UTILITY ---------- Machine Analyzer Actuator Array Improved Weapon Shielding Hacking Suite System Shield > --- WEAPON ----------- Greatsword Spear > --- INVENTORY -------- Medium Storage Unit Improved Signal Interpreter Component Analysis Suite Beamcaster Improved Datajack [Rating: 43] Favorites ----------- Power Ion Engine Engine Ion Engine Power Core Micro Nuclear Core Propulsion Light Treads Treads Light Treads Wheel Wheel Flight Unit Surge Thruster Utility Seismic Detector Device Seismic Detector Storage Large Storage Unit Processor Machine Analyzer Hackware Hacking Suite Protection Light Armor Plating Weapon EM Pulse Gun Energy Gun EM Pulse Gun Energy Cannon Heavy Particle Cannon Ballistic Gun Light Assault Rifle Ballistic Cannon Battle Cannon Launcher Grenade Launcher Slashing Weapon Axe Piercing Weapon Spear Special Melee Weapon Improved Datajack Build | -11 -10 -10 -8 -7 -7 ------- Run | Yrd Mat Sub Mat Fac Low Slots Evolved 6 | . . . 4 2 . Power . | . . . . . . Propulsion 2 | . . . 1 1 . Utility 3 | . . . 2 1 . Weapon 1 | . . . 1 . . Parts Attached 96 | 7 6 14 45 9 15 Power 8 | 1 . 1 2 2 2 Engine 5 | 1 . 1 2 1 . Core 3 | . . . . 1 2 Reactor . | . . . . . . Propulsion 32 | 2 . 4 22 2 2 Treads 5 | 2 . 2 1 . . Leg . | . . . . . . Wheel 5 | . . 2 3 . . Hover . | . . . . . . Flight 22 | . . . 18 2 2 Utility 19 | 2 1 4 8 2 2 Device 6 | 1 . . 4 . 1 Storage 5 | 1 1 1 1 1 . Processor 1 | . . . 1 . . Hackware 2 | . . . 1 . 1 Protection 5 | . . 3 1 1 . Artifact . | . . . . . . Weapon 37 | 2 5 5 13 3 9 Energy Gun 16 | . 5 1 8 . 2 Energy Cannon 1 | . . . . 1 . Ballistic Gun 2 | 2 . . . . . Ballistic Cannon 1 | . . 1 . . . Launcher 4 | . . 3 1 . . Special Weapon . | . . . . . . Impact Weapon . | . . . . . . Slashing Weapon 6 | . . . 3 . 3 Piercing Weapon 4 | . . . . 1 3 Special Melee Weapon 3 | . . . 1 1 1 Unidentified Prototypes 1 | . . . 1 . . Parts Lost 29 | . 1 8 6 . 14 Power 3 | . . 1 1 . 1 Propulsion 9 | . . 1 2 . 6 Utility 9 | . . 2 1 . 6 Weapon 8 | . 1 4 2 . 1 Highest Loss Streak 11 | . 1 4 4 . 11 To Critical Strikes . | . . . . . . Average Slot Usage (%) 89 | . 100 97 68 89 69 Engine 10 | . 14 13 6 4 . Treads 10 | . 28 3 1 . . Wheel 8 | . . 24 5 . . Flight 7 | . . . 12 29 25 Device 7 | . 14 . 7 13 3 Storage 9 | . 14 13 2 1 4 Processor 2 | . . . 8 7 6 Hackware 2 | . . . 2 7 9 Protection 5 | . . 13 1 2 5 Energy Gun 12 | . 23 6 12 1 . Ballistic Gun 1 | . 4 . . . . Launcher 6 | . . 20 . . . Slashing Weapon 1 | . . . 5 1 5 Naked Turns 37 | . . 12 25 . . Heaviest Build 94 | 13 30 94 35 27 30 Greatest Support 40 | 40 40 40 26 20 20 Greatest Overweight (x) 4 | 2 . 4 2 1 2 Average Overweight (x) . | . . 3 . . . Largest Inventory Capacity 25 | 8 15 25 15 10 10 Average Capacity 14 | 7 14 23 7 6 8 Most Carried 19 | 6 15 19 10 8 10 Average Carried 11 | 3 13 17 4 5 7 Final Capacity 15 | 8 15 5 5 10 5 Final Carried 15 | 6 15 3 4 8 3 Class Distribution -------------------- 70% | Mutant 20% | Scavenger-Sprinter 4% | Scavenger-Mutant Dominant Class ---------------- Mutant | -10/Materials Mutant | -10/Subcaves Mutant | -8/Materials Scavenger-Sprinter | -7/Factory Scavenger-Sprinter | -7/Lower Caves Resources | -11 -10 -10 -8 -7 -7 ----------- Run | Yrd Mat Sub Mat Fac Low Matter Collected 1121 | 296 56 138 431 17 183 Remotely . | . . . . . . Salvage Created 1329 | 88 463 173 547 17 41 Parts 93 | 10 28 13 36 1 5 Haulers Intercepted 4 | . 2 . 2 . . Recyclers Shooed 2 | . 2 . . . . Parts Field Recycled . | . . . . . . Retrieved Matter . | . . . . . . Parts Self-Destructed 12 | . . 8 . . 4 Prevented . | . . . . . . Kills | -11 -10 -10 -8 -7 -7 ------- Run | Yrd Mat Sub Mat Fac Low Combat Hostiles Destroyed 28 | . 7 7 12 . 2 Melee 3 | . . . 1 . 2 Guns 18 | . 7 . 11 . . AOE 7 | . . 7 . . . Classes Destroyed 11 | 1 6 1 3 . . Worker 2 | . 1 . . 1 . Tunneler 5 | 4 . . 1 . . Hauler 4 | . 2 . 2 . . Recycler 1 | . . . 1 . . Mechanic 1 | . 1 . . . . Watcher 5 | . 3 . 2 . . Swarmer 13 | . 3 . 8 . 2 Cutter 2 | . . . 2 . . Grunt 5 | . 4 . 1 . . Sentry 1 | . . . 1 . . Subdweller 7 | . . 7 . . . Best Kill Streak 6 | 2 4 2 6 1 2 Combat Bots Only 4 | . 2 2 4 . 2 Max Kills in Single Turn 2 | 1 2 1 1 1 1 Gunslinging . | . . . . . . Exploded 1 | . . 1 . . . Melee 1 | . . . 1 . 1 Uniques/NPCs Destroyed . | . . . . . . Combat | -11 -10 -10 -8 -7 -7 -------- Run | Yrd Mat Sub Mat Fac Low Hostile Shots Fired 281 | . 41 54 87 . 99 Missed 89 | . 13 20 29 . 27 Damage Taken 3522 | . 362 1074 745 45 1296 Core 1064 | . 55 116 180 45 668 Absorbed by Shields . | . . . . . . Redirected to Shielding 103 | . . . . . 103 Regen/Repaired (Parts) 49 | . 49 . . . . Core Remaining (%) 66 | 100 . 31 67 . . Volleys Fired 107 | 14 39 23 30 1 . Largest 3 | 2 2 2 3 1 . Hottest 165 | 40 80 89 165 75 . Shots Fired 197 | 28 78 35 55 1 . Gun 167 | 28 78 7 54 . . Cannon 3 | . . 2 . 1 . Launcher 27 | . . 26 1 . . Special . | . . . . . . Kinetic 30 | 28 . 2 . . . Thermal 55 | . . . 54 1 . Explosive 27 | . . 26 1 . . Electromagnetic 85 | . 78 7 . . . Robot Hit Streak 13 | 11 7 13 12 . . Robot Miss Streak 6 | 2 6 2 3 . . Penetration Max . | . . . . . . Secondary Targets 3 | . . . 3 . . Max Gunslinging Chain 1 | . . . 1 . . Shots Hit Robots 153 | 20 48 18 41 1 25 Core Hits 74 | 7 20 15 23 1 8 Critical Kills . | . . . . . . Critical Parts Destroyed 1 | 1 . . . . . Critical Strikes 8 | 1 . . 1 1 5 Destroy 1 | 1 . . . . . Sever 5 | . . . 1 . 4 Impale 2 | . . . . 1 1 Melee Attacks 48 | . . . 17 2 29 Impact . | . . . . . . Slashing 28 | . . . 17 . 11 Piercing 20 | . . . . 2 18 Sneak Attacks 6 | . . . 5 1 . Combat Hostiles . | . . . . . . Follow-up Attacks . | . . . . . . Damage Inflicted 4032 | 165 905 1004 1183 56 719 Guns 1503 | 163 710 83 547 . . Cannons 27 | . . 27 . . . Explosions 1089 | . 181 894 14 . . Melee 1397 | . . . 622 56 719 Ramming 16 | 2 14 . . . . Kinetic 190 | 163 . 27 . . . Thermal 728 | . 181 . 547 . . Explosive 908 | . . 894 14 . . Electromagnetic 793 | . 710 83 . . . Impact . | . . . . . . Slashing 870 | . . . 622 . 248 Piercing 527 | . . . . 56 471 Highest Corruption . | . . . . . . Average Corruption . | . . . . . . Corruption Purged . | . . . . . . Corruption Blocked . | . . . . . . Overload Shots . | . . . . . . Overflow Damage 102 | . . . 97 . 5 Projectiles . | . . . . . . Explosions . | . . . . . . Melee 102 | . . . 97 . 5 Knockbacks . | . . . . . . Impact . | . . . . . . Kinetic . | . . . . . . Secondary . | . . . . . . Self-Inflicted Damage 59 | . 35 24 . . . Shots 2 | . 1 1 . . . Rammed 3 | 1 2 . . . . Targets Rammed 3 | 1 2 . . . . Kicked . | . . . . . . Crushed . | . . . . . . Highest Temperature 240 | . 189 . 240 8 . Average Temperature 71 | . 59 . 87 6 . Received Heat Transfer 558 | . 132 111 171 . 144 Siege Activations . | . . . . . . Robots Corrupted 1 | . 1 . . . . Combat Hostiles . | . . . . . . Parts Fried 5 | . 5 . . . . Impact Corruptions . | . . . . . . Robots Melted . | . . . . . . Combat Hostiles . | . . . . . . Parts Melted 1 | . . . 1 . . Heat Transferred 1323 | . 250 . 1073 . . Parts Sabotaged . | . . . . . . Parts Stolen . | . . . . . . Parts Stripped . | . . . . . . Power Chain Reactions 2 | . 2 . . . . Alert | -11 -10 -10 -8 -7 -7 ------- Run | Yrd Mat Sub Mat Fac Low Peak Influence 291 | 20 154 . 291 164 . Initial 70 | . 13 . . 70 . Average 76 | 9 46 . 122 126 . Maximum Alert Level 1 | . . . 1 . . Low Security (%) 94 | 100 100 . 79 100 . Level 1 5 | . . . 20 . . Level 2 . | . . . . . . Level 3 . | . . . . . . Level 4 . | . . . . . . Level 5 . | . . . . . . High Security . | . . . . . . Max Security . | . . . . . . Squads Dispatched 2 | . 1 . 1 . . Investigation 1 | . 1 . . . . Extermination . | . . . . . . Reinforcement 1 | . . . 1 . . Assault . | . . . . . . Garrison . | . . . . . . Intercept . | . . . . . . Searches Triggered . | . . . . . . Construction Impeded . | . . . . . . Haulers Reinforced . | . . . . . . Active Scanning Responses . | . . . . . . Cargo Convoy Interrupts . | . . . . . . Stealth | -11 -10 -10 -8 -7 -7 --------- Run | Yrd Mat Sub Mat Fac Low Distress Signals 3 | . 2 . 1 . . Communications Jammed . | . . . . . . Distress Signals . | . . . . . . Times Spotted 61 | . 12 13 28 3 5 Peak Tracking Total 14 | . 3 5 14 1 4 Tactical Retreats 1 | . . . . . 1 Traps | -11 -10 -10 -8 -7 -7 ------- Run | Yrd Mat Sub Mat Fac Low Traps Triggered 5 | . . 3 1 1 . Indirectly . | . . . . . . Trap Hack Attempts 17 | . . . 2 15 . Triggered . | . . . . . . Disarmed 3 | . . . 1 2 . Reprogrammed . | . . . . . . Reused . | . . . . . . Traps Extracted . | . . . . . . Installed . | . . . . . . Triggered . | . . . . . . Machines | -11 -10 -10 -8 -7 -7 ---------- Run | Yrd Mat Sub Mat Fac Low Machines Disabled . | . . . . . . Max in Single Turn . | . . . . . . Machines Repaired . | . . . . . . Machines Dismantled . | . . . . . . Machines Sabotaged . | . . . . . . Overloaded Fab Kills . | . . . . . . Hacking | -11 -10 -10 -8 -7 -7 --------- Run | Yrd Mat Sub Mat Fac Low Machines Accessed 19 | . 5 . 8 5 1 Terminals 12 | . 3 . 6 3 . Fabricators 1 | . . . . 1 . Repair Stations 1 | . 1 . . . . Recycling Units 1 | . 1 . . . . Scanalyzers 3 | . . . 2 1 . Garrison Access . | . . . . . . Total Hacks 56 | . 17 . 24 14 1 Successful 36 | . 7 . 17 11 1 Failed 20 | . 10 . 7 3 . Catastrophic 4 | . 1 . 2 1 . Database Lockouts . | . . . . . . Manual 15 | . 7 . 6 2 . Terminals 30 | . 10 . 13 7 . Fabricators 2 | . . . . 2 . Repair Stations 4 | . 4 . . . . Recycling Units 3 | . 3 . . . . Scanalyzers 16 | . . . 11 5 . Garrison Access . | . . . . . . Terminal Hacks 9 | . 2 . 4 2 1 Prototype ID Bank 1 | . . . 1 . . Open Door 1 | . . . . . 1 Branch Access Points 2 | . 1 . 1 . . Alert Level 1 | . . . . 1 . Locate Traps 1 | . . . 1 . . Patrol Status 1 | . . . . 1 . Zone Layout 2 | . 1 . 1 . . Fabricator Hacks 2 | . . . . 2 . Network Status 1 | . . . . 1 . Build 1 | . . . . 1 . Repair Station Hacks 2 | . 2 . . . . Scan Component 1 | . 1 . . . . Repair 1 | . 1 . . . . Recycling Unit Hacks 2 | . 2 . . . . Report Inventory 1 | . 1 . . . . Retrieve Components 1 | . 1 . . . . Scanalyzer 16 | . . . 11 5 . Insert Component 7 | . . . 5 2 . Analyze 9 | . . . 6 3 . Garrison Access Hacks . | . . . . . . Unauthorized Hacks 5 | . 1 . 2 2 . Terminals 5 | . 1 . 2 2 . Assimilate 2 | . . . 1 1 . Botnet 1 | . 1 . . . . Disrupt 1 | . . . 1 . . Operators 1 | . . . . 1 . Fabricators . | . . . . . . Repair Stations . | . . . . . . Recycling Units . | . . . . . . Scanalyzers . | . . . . . . Garrison Access . | . . . . . . Data Cores Recovered . | . . . . . . Used . | . . . . . . Hacking Detections 16 | . 4 . 7 5 . Full Trace Events 2 | . 2 . . . . Feedback Events . | . . . . . . Feedback Blocked . | . . . . . . Robot Schematics Acquired . | . . . . . . Robots Built 1 | . . . . 1 . Authchips . | . . . . . . Time 40 | . . . . 40 . Total Robot Build Rating 1 | . . . . 1 . Part Schematics Acquired 7 | . . . 5 2 . Parts Built . | . . . . . . Authchips . | . . . . . . Time . | . . . . . . Total Part Build Rating . | . . . . . . Parts Repaired 1 | . 1 . . . . Time 26 | . 26 . . . . Parts Recycled . | . . . . . . Recycled Matter . | . . . . . . Retrieved Matter . | . . . . . . Retrieved Components 4 | . 4 . . . . Parts Scanalyzed 7 | . . . 5 2 . Part Schematics Acquired 7 | . . . 5 2 . Parts Damaged . | . . . . . . Bothacking | -11 -10 -10 -8 -7 -7 ------------ Run | Yrd Mat Sub Mat Fac Low Used RIF Installer . | . . . . . . Robots Hacked . | . . . . . . Non-combat . | . . . . . . Combat . | . . . . . . Robot Hacks Applied . | . . . . . . Relay Couplers Released . | . . . . . . Fabnet Peak Effective % . | . . . . . . Robots Rewired . | . . . . . . Allies Hacked . | . . . . . . Hacks Repelled . | . . . . . . Allies | -11 -10 -10 -8 -7 -7 -------- Run | Yrd Mat Sub Mat Fac Low Total Allies 3 | . . . 1 2 . Largest Group 2 | . . . 1 2 1 Highest-Rated Group 34 | . . . 10 34 26 Highest-Rated Ally 26 | . . . 10 26 26 Total Orders 4 | . . . 2 2 . STAY 2 | . . . 1 1 . FOLLOW 2 | . . . 1 1 . Ally Attacks . | . . . . . . Total Damage . | . . . . . . Kills . | . . . . . . Allies Corrupted . | . . . . . . Allies Melted . | . . . . . . Intel | -11 -10 -10 -8 -7 -7 ------- Run | Yrd Mat Sub Mat Fac Low Robot Analysis Total . | . . . . . . Derelict Logs Recovered 2 | . . 1 . . 1 Drone Launches . | . . . . . . Drone Recoveries . | . . . . . . Exploration | -11 -10 -10 -8 -7 -7 ------------- Run | Yrd Mat Sub Mat Fac Low Turns Passed 3235 | 173 978 911 571 308 294 Spaces Moved 2804 | 71 491 584 637 644 377 Core 126 | 5 . 24 90 . 7 Treads 616 | 66 491 59 . . . Legs . | . . . . . . Wheels 602 | . . 501 101 . . Hover . | . . . . . . Flight 1460 | . . . 446 644 370 Fastest Speed 26 | 50 160 50 29 26 26 Average Speed 81 | 155 160 138 46 26 34 Slowest Speed 160 | 160 160 160 120 76 150 Overloaded Moves . | . . . . . . Propulsion Burnouts . | . . . . . . Robots Hopped 11 | . . . 8 3 . Cave-ins Triggered . | . . . . . . Exploration Rate (%) 36 | 4 65 37 45 18 48 Regions Visited 5 Branch Regions 2 Pre-discovered Areas 1 | . . 1 . . . Known Exits Taken . | . . . . . . Unknown Exits Taken 5 | 1 1 1 1 1 . Scrap Searched 4 | . . 1 . . 3 Spaces Dug . | . . . . . . Terrain Destroyed 122 | . 4 109 9 . . Melee . | . . . . . . Projectile 1 | . . 1 . . . AOE 121 | . 4 108 9 . . Terrain Rammed . | . . . . . . Walls Destroyed . | . . . . . . Machines Disabled . | . . . . . . Actions | -11 -10 -10 -8 -7 -7 --------- Run | Yrd Mat Sub Mat Fac Low Total 3443 | 108 605 644 817 776 493 Wait 267 | 8 48 11 52 93 55 Move 2778 | 70 490 583 621 637 377 Hop 10 | . . . 7 3 . Pick Up 60 | 7 14 9 20 5 5 Fast Attach 41 | 7 . . 24 6 4 Attach 29 | . 1 8 10 2 8 Detach 14 | . . . 4 4 6 Swap 26 | . 5 6 11 1 3 Drop 43 | 1 6 4 19 7 6 Fire 107 | 14 39 23 30 1 . Melee 48 | . . . 17 2 29 Ram . | . . . . . . Kick . | . . . . . . Crush 3 | 1 2 . . . . Escape Stasis . | . . . . . . Rewire . | . . . . . . Trap 17 | . . . 2 15 . Miscellaneous . | . . . . . . Route ------- -11/Scrapyard -10/Materials (discovered 5 exits: [*Mat x2] / *Min x2 / [*Sub]) -10/Subcaves -8/Materials (discovered 2 exits: *Fac x2) -7/Factory -7/Lower Caves History --------- Turn | Location | Event 18 | -11/Scrapyard | Discovered new exit (range 15) 174 | -11/Scrapyard | Entered Materials 187 | -10/Materials | Discovered new exit (range 16) 310 | -10/Materials | Build established: Mutant 544 | -10/Materials | Discovered new exit (range 10) 684 | -10/Materials | Discovered new exit (range 14) 837 | -10/Materials | Repaired Lgt. Armor Plating 940 | -10/Materials | Discovered new exit (range 13) 956 | -10/Materials | Identified exit to Mines 1145 | -10/Materials | Discovered new exit (range 5) 1152 | -10/Materials | Entered Subcaves 1191 | -10/Subcaves | Learned location of Recycling (-9) 1467 | -10/Subcaves | Ambushed by Subdweller buried in earth 1898 | -10/Subcaves | Shifting Twisted Machinery released Riot Gun 1913 | -10/Subcaves | Discovered new exit (range 8) 1914 | -10/Subcaves | Shifting Twisted Machinery released Battle Cannon 2021 | -10/Subcaves | Ambushed by Subdweller buried in earth 2022 | -10/Subcaves | Core integrity fell below 50% 2051 | -10/Subcaves | Released all parts (5) 2063 | -10/Subcaves | Entered Materials 2063 | -8/Materials | Evolved 4 slots: Propulsion x1, Utility x2, Weapon x1 2072 | -8/Materials | Lost 4 parts (1n1u2w) 2400 | -8/Materials | Discovered new exit (range 16) 2620 | -8/Materials | Lost 4 parts (2n2w) 2627 | -8/Materials | Discovered new exit (range 16) 2634 | -8/Materials | Entered Factory 2634 | -7/Factory | Evolved 2 slots: Propulsion x1, Utility x1 2688 | -7/Factory | Discovered new exit (range 15) 2764 | -7/Factory | Build established: Scavenger-Sprinter 2884 | -7/Factory | Fabricated R-06 Scavenger? 2942 | -7/Factory | Entered Lower Caves 2942 | -7/Lower Caves | Accompanied by 1 ally 3064 | -7/Lower Caves | Spotted B-75 Beast 3105 | -7/Lower Caves | Learned Factory garrison access intel 3211 | -7/Lower Caves | Core integrity fell below 50% 3226 | -7/Lower Caves | Core integrity fell below 20% 3236 | -7/Lower Caves | Destroyed by B-75 Beast with Heavy Machine Gun Last Messages --------------- 03174_ Mic. Nuclear Core destroyed. 03177_ Imp. Weapon Shielding destroyed. 03177_ Knocked back. 03180_ B-75 Beast Rnf. Deuterium Engine severed. 03182_ Greatsword destroyed. 03182_ Knocked back. 03193_ Cesium-ion Thruster destroyed. 03193_ Surge Thruster destroyed. 03193_ Knocked back. 03193_ Surge Thruster destroyed. 03195_ B-75 Beast suffers critical hit (Impale). 03199_ Machine Analyzer destroyed. 03199_ Knocked back. 03210_ Actuator Array destroyed. 03215_ System Shield destroyed. 03215_ Knocked back. 03223_ Destroyed Dynamic Insulation System. 03225_ Knocked back. 03236_ Hacking Suite destroyed. 03236_ Knocked back. Map ----- +----------------------------------------------------+ | ?????????????????????????????????????????????????? | | ?????????????????????????????????????????????????? | | ?????????????????????????????????????????????????? | | ?????????????????????????????????????????????????? | | ?????????????????????????????????????????????????? | | ?????????????????????????????????????????????????? | | ?????????????????????????????????????????????????? | | ?????????????????????????????????????????????????? | | ??????????????????######?????????????????????????? | | ??????????????????#X!/*##??????????####??????????? | | ??????????????????## #[!#?????????? ##?????????? | | ???????????????????#]#[!#????????? #?????????? | | ???????????????????# #####???????? #?????????? | | ???????????????????## #" ######## #?????????? | | ??????????????????## #" # ! #??????????? | | ??????????????????# # #???????????? | | ??????????????????# #### ## #?????????? | | ????????????????### ;### ##????????? | | ????????????????#" #????????? | | ????????????????## #???????? | | ?????????????????## ##;;;#### #??????? | | ??????????????????# ;#;; #?## #??????? | | ?????????????????## #???# #??###?? | | ??????????????#### #????# #?# ### | | ??????????????# ;#% % ##????# ##?# | | ??????????????# ;;@ BB ######## ###??# | | ??????????????# ##;# BB #???#????# | | ??????????????# ##### %% % ##???????## # | | ??????????????## ###???# ## ##??###### # | | ???????????????####?# #### #??? ## # | | ???????????????????# #?## ##??# ## # | | ??????????????????# ## #### ## # | | ?????????????????# ## # ## | | ???????????????? #?## ### ## | | ??????????????? ???# #?## | | ???????????????? #????# ??# ## | | ???????????????? ?????? ### | | ???????????????? ?????? ###" | | ?????????????????????? # | | ??????????????????????# ## """## # | | ??????????????????????## #?# $##### | | ???????????????????????## ??# #### | | ?????????????????????????? ?? | | ???????????????????????????? ?? | | ????????????????????????????????? | | ????????????????????????????????? | | ??????????????????????????????????? ##### | | ???????????????????????????????????? #????? | | ????????????????????????????????????? ?##??# | | ?????????????????????????????????????# ??# ## | +----------------------------------------------------+ Best States ------------- Heat Dissipation 44 Energy Generation 15 Energy Capacity 250 Matter Stores 300 Matter Capacity 300 Sight Range 16 Terrain Scan Density 10 Additional Mass Support 6 Armor Coverage 800 Weapon Shielding 66 Evasion (%) 64 Recoil Reduction 2 Offensive Hacking 10 Defensive Hacking 10 Item Schematics ----------------- Cesium-ion Thruster | -8/Materials | Scanalyzed Wheel | -8/Materials | Scanalyzed Surge Thruster | -8/Materials | Scanalyzed Imp. Datajack | -8/Materials | Scanalyzed Weight Redist. System | -8/Materials | Scanalyzed Imp. Signal Interpreter | -7/Factory | Scanalyzed Component Analysis Suite | -7/Factory | Scanalyzed Robot Schematics ------------------ None Fabricated ------------ R-06 Scavenger | x1 | -7/Factory | Preloaded Alien Tech Used ----------------- None Achievements -------------- None Challenges ------------ None Game ------ Seed PointHackingWell Manual? 0 Play Time 00:47:13 Cumulative 137.2 hours Start 2024.06.08 @ 21:04:19 End 2024.06.08 @ 21:54:21 Sessions 1 Manual Loads 0 Difficulty Rogue Special Mode None Game No. 114 Rogue 75 Adventurer 32 Explorer 7 Win Type - Total 1 Types 1/0/0/0/0/0/0/0/0 Lore% 39 Gallery% 68 Achievement% 52 Wizard Run 0 Options --------- Layout 2 ASCII 0 Keyboard 0 Movement Numpad Keybinds 0 Fullscreen 2 Font 24/Smallcaps Map View 50x44 Zoom Use 0% Tactical HUD 1 Map Filters NONE Filters NONE Steam SD RUN: 707d01cc-c1b0-418e-b105-d632f9578ebf